Workbook

Sheet Dashboard
A1: Symbols | B1: Ranked | W1: Symbol | X1: This Week | Y1: This Week
A2: =Data!$F2 -> CPE | B2: =Data!G2 -> 0.01561582717 | C2: =B2 -> 0.01561582717 | W2: from Data | X2: Right | Y2: Left
A3: =Data!$F3 -> GLE | B3: =Data!G3 -> 0.0129960872 | C3: =B3 -> 0.0129960872 | W3: =Data!A2 -> BTC
A4: =Data!$F4 -> SIE | B4: =Data!G4 -> 0.01147193788 | C4: 0.01147193788 | W4: =Data!A3 -> CCE
A5: =Data!$F5 -> CCE | B5: =Data!G5 -> 0.007554382452 | C5: 0.007554382452 | W5: =Data!A4 -> CLE
A6: =Data!$F6 -> DXE | B6: =Data!G6 -> 0.0005480384005 | C6: 0.0005480384005 | W6: =Data!A5 -> CPE
A7: =Data!$F7 -> SBE | B7: =Data!G7 -> 0.000488997555 | C7: 0.000488997555 | W7: =Data!A6 -> DXE
A8: =Data!$F8 -> EU6 | B8: =Data!G8 -> -0.0003280993672 | C8: -0.0003280993672 | W8: =Data!A7 -> EU6
A9: =Data!$F9 -> HE | B9: =Data!G9 -> -0.001864181092 | C9: -0.001864181092 | W9: =Data!A8 -> GCE
A10: =Data!$F10 -> GCE | B10: =Data!G10 -> -0.002886002886 | C10: -0.002886002886 | W10: =Data!A9 -> GLE
A11: =Data!$F11 -> ZWA | B11: =Data!G11 -> -0.006294964029 | C11: -0.006294964029 | W11: =Data!A10 -> HE
A12: =Data!$F12 -> TYA | B12: =Data!G12 -> -0.007763082231 | C12: -0.007763082231 | W12: =Data!A11 -> HOE
A13: =Data!$F13 -> ZCE | B13: =Data!G13 -> -0.01033295063 | C13: -0.01033295063 | W13: =Data!A12 -> NGE
A14: =Data!$F14 -> CLE | B14: =Data!G14 -> -0.01050665421 | C14: -0.01050665421 | W14: =Data!A13 -> PAE
A15: =Data!$F15 -> QO | B15: =Data!G15 -> -0.01116639027 | C15: -0.01116639027 | W15: =Data!A14 -> PLE
A16: =Data!$F16 -> RBE | B16: =Data!G16 -> -0.01238003496 | C16: -0.01238003496 | W16: =Data!A15 -> QO
A17: =Data!$F17 -> ZSE | B17: =Data!G17 -> -0.01277683135 | C17: -0.01277683135 | W17: =Data!A16 -> RBE
A18: =Data!$F18 -> PAE | B18: =Data!G18 -> -0.0136857008 | C18: -0.0136857008 | W18: =Data!A17 -> SBE
A19: =Data!$F19 -> BTC | B19: =Data!G19 -> -0.0152597886 | C19: -0.0152597886 | W19: =Data!A18 -> SIE
A20: =Data!$F20 -> HOE | B20: =Data!G20 -> -0.01720606309 | C20: -0.01720606309 | W20: =Data!A19 -> TYA
A21: =Data!$F21 -> NGE | B21: =Data!G21 -> -0.02598870056 | C21: -0.02598870056 | W21: =Data!A20 -> ZCE
A22: =Data!$F22 ->  | B22: =Data!G22 ->  | W22: =Data!A21 -> ZSE
A23: =RTD("cqg.rtd", ,"SystemInfo", "Linetime") -> 45397.37523 | W23: =Data!A22 -> ZWA
X24: Adjusted
X25: Minimum | Y25: Maximum
X26: =ROUNDDOWN(MIN(Data!I5:AC6)-0.05,2) -> -0.12 | Y26: =ROUNDUP(MAX(Data!I5:AC6)+0.05,2) -> 0.18

Sheet Data
F1: Ranked
A2: =I4 -> BTC | B2: =IFERROR((RTD("cqg.rtd",,"StudyData",$A2,"BAR","","Close",$H$4,0,$H$6,$H$10,,$H$8,$H$12)-RTD("cqg.rtd",,"StudyData",$A2,"BAR","","Close",$H$4,-1,$H$6,$H$10,,$H$8,$H$12))/RTD("cqg.rtd",,"StudyData",$A2,"BAR","","Close",$H$4,-1,$H$6,$H$10,,$H$8,$H$12),"") -> -0.0152597886 | C2: =IFERROR(RANK($B2,$B$2:B$22)+COUNTIF($B$2:B2,B2)-1,"") -> 18 | D2: =A2 -> BTC | E2: 1 | F2: =IFERROR(VLOOKUP(E2,$C$2:$D$22,2,FALSE),"") -> CPE | G2: =IFERROR(VLOOKUP(F2,$A$2:$B$22,2,FALSE),"") -> 0.01561582717 | I2: =I4&" (This week)" -> BTC (This week) | J2: =J4&" (This week)" -> CCE (This week) | K2: CLE (This week) | L2: CPE (This week) | M2: DXE (This week) | N2: EU6 (This week) | O2: GCE (This week) | P2: GLE (This week) | Q2: HE (This week) | R2: HOE (This week) | S2: NGE (This week) | T2: PAE (This week) | U2: PLE (This week) | V2: QO (This week) | W2: RBE (This week) | X2: SBE (This week) | Y2: SIE (This week) | Z2: TYA (This week) | AA2: ZCE (This week) | AB2: ZSE (This week) | AC2: ZWA (This week)
A3: =J4 -> CCE | B3: =IFERROR((RTD("cqg.rtd",,"StudyData",$A3,"BAR","","Close",$H$4,0,$H$6,$H$10,,$H$8,$H$12)-RTD("cqg.rtd",,"StudyData",$A3,"BAR","","Close",$H$4,-1,$H$6,$H$10,,$H$8,$H$12))/RTD("cqg.rtd",,"StudyData",$A3,"BAR","","Close",$H$4,-1,$H$6,$H$10,,$H$8,$H$12),"") -> 0.007554382452 | C3: =IFERROR(RANK($B3,$B$2:B$22)+COUNTIF($B$2:B3,B3)-1,"") -> 4 | D3: =A3 -> CCE | E3: =E2+1 -> 2 | F3: =IFERROR(VLOOKUP(E3,$C$2:$D$22,2,FALSE),"") -> GLE | G3: =IFERROR(VLOOKUP(F3,$A$2:$B$22,2,FALSE),"") -> 0.0129960872 | H3: Chart Time Frame | I3: =I4&" (Last week)" -> BTC (Last week) | J3: =J4&" (Last week)" -> CCE (Last week) | K3: CLE (Last week) | L3: CPE (Last week) | M3: DXE (Last week) | N3: EU6 (Last week) | O3: GCE (Last week) | P3: GLE (Last week) | Q3: HE (Last week) | R3: HOE (Last week) | S3: NGE (Last week) | T3: PAE (Last week) | U3: PLE (Last week) | V3: QO (Last week) | W3: RBE (Last week) | X3: SBE (Last week) | Y3: SIE (Last week) | Z3: TYA (Last week) | AA3: ZCE (Last week) | AB3: ZSE (Last week) | AC3: ZWA (Last week)
A4: =K4 -> CLE | B4: =IFERROR((RTD("cqg.rtd",,"StudyData",$A4,"BAR","","Close",$H$4,0,$H$6,$H$10,,$H$8,$H$12)-RTD("cqg.rtd",,"StudyData",$A4,"BAR","","Close",$H$4,-1,$H$6,$H$10,,$H$8,$H$12))/RTD("cqg.rtd",,"StudyData",$A4,"BAR","","Close",$H$4,-1,$H$6,$H$10,,$H$8,$H$12),"") -> -0.01050665421 | C4: =IFERROR(RANK($B4,$B$2:B$22)+COUNTIF($B$2:B4,B4)-1,"") -> 13 | D4: CLE | E4: =E3+1 -> 3 | F4: SIE | G4: 0.01147193788 | H4: W | I4: BTC | J4: CCE | K4: CLE | L4: CPE | M4: DXE | N4: EU6 | O4: GCE | P4: GLE | Q4: HE | R4: HOE | S4: NGE | T4: PAE | U4: PLE | V4: QO | W4: RBE | X4: SBE | Y4: SIE | Z4: TYA | AA4: ZCE | AB4: ZSE | AC4: ZWA
A5: =L4 -> CPE | B5: =IFERROR((RTD("cqg.rtd",,"StudyData",$A5,"BAR","","Close",$H$4,0,$H$6,$H$10,,$H$8,$H$12)-RTD("cqg.rtd",,"StudyData",$A5,"BAR","","Close",$H$4,-1,$H$6,$H$10,,$H$8,$H$12))/RTD("cqg.rtd",,"StudyData",$A5,"BAR","","Close",$H$4,-1,$H$6,$H$10,,$H$8,$H$12),"") -> 0.01561582717 | C5: =IFERROR(RANK($B5,$B$2:B$22)+COUNTIF($B$2:B5,B5)-1,"") -> 1 | D5: CPE | E5: 4 | F5: CCE | G5: 0.007554382452 | H5: Type All or PrimaryOnly | I5: =IFERROR((RTD("cqg.rtd",,"StudyData",I$4,"BAR","","Close",$H$4,0,$H$6,$H$10,,$H$8,$H$12)-RTD("cqg.rtd",,"StudyData",I$4,"BAR","","Close",$H$4,-1,$H$6,$H$10,,$H$8,$H$12))/RTD("cqg.rtd",,"StudyData",I$4,"BAR","","Close",$H$4,-1,$H$6,$H$10,,$H$8,$H$12),"") -> -0.0152597886 | J5: =IFERROR((RTD("cqg.rtd",,"StudyData",J$4,"BAR","","Close",$H$4,0,$H$6,$H$10,,$H$8,$H$12)-RTD("cqg.rtd",,"StudyData",J$4,"BAR","","Close",$H$4,-1,$H$6,$H$10,,$H$8,$H$12))/RTD("cqg.rtd",,"StudyData",J$4,"BAR","","Close",$H$4,-1,$H$6,$H$10,,$H$8,$H$12),"") -> 0.007554382452 | K5: =IFERROR((RTD("cqg.rtd",,"StudyData",K$4,"BAR","","Close",$H$4,0,$H$6,$H$10,,$H$8,$H$12)-RTD("cqg.rtd",,"StudyData",K$4,"BAR","","Close",$H$4,-1,$H$6,$H$10,,$H$8,$H$12))/RTD("cqg.rtd",,"StudyData",K$4,"BAR","","Close",$H$4,-1,$H$6,$H$10,,$H$8,$H$12),"") -> -0.01050665421 | L5: =IFERROR((RTD("cqg.rtd",,"StudyData",L$4,"BAR","","Close",$H$4,0,$H$6,$H$10,,$H$8,$H$12)-RTD("cqg.rtd",,"StudyData",L$4,"BAR","","Close",$H$4,-1,$H$6,$H$10,,$H$8,$H$12))/RTD("cqg.rtd",,"StudyData",L$4,"BAR","","Close",$H$4,-1,$H$6,$H$10,,$H$8,$H$12),"") -> 0.01561582717 | M5: =IFERROR((RTD("cqg.rtd",,"StudyData",M$4,"BAR","","Close",$H$4,0,$H$6,$H$10,,$H$8,$H$12)-RTD("cqg.rtd",,"StudyData",M$4,"BAR","","Close",$H$4,-1,$H$6,$H$10,,$H$8,$H$12))/RTD("cqg.rtd",,"StudyData",M$4,"BAR","","Close",$H$4,-1,$H$6,$H$10,,$H$8,$H$12),"") -> 0.0005480384005 | N5: =IFERROR((RTD("cqg.rtd",,"StudyData",N$4,"BAR","","Close",$H$4,0,$H$6,$H$10,,$H$8,$H$12)-RTD("cqg.rtd",,"StudyData",N$4,"BAR","","Close",$H$4,-1,$H$6,$H$10,,$H$8,$H$12))/RTD("cqg.rtd",,"StudyData",N$4,"BAR","","Close",$H$4,-1,$H$6,$H$10,,$H$8,$H$12),"") -> -0.0003280993672 | O5: =IFERROR((RTD("cqg.rtd",,"StudyData",O$4,"BAR","","Close",$H$4,0,$H$6,$H$10,,$H$8,$H$12)-RTD("cqg.rtd",,"StudyData",O$4,"BAR","","Close",$H$4,-1,$H$6,$H$10,,$H$8,$H$12))/RTD("cqg.rtd",,"StudyData",O$4,"BAR","","Close",$H$4,-1,$H$6,$H$10,,$H$8,$H$12),"") -> -0.002886002886 | P5: =IFERROR((RTD("cqg.rtd",,"StudyData",P$4,"BAR","","Close",$H$4,0,$H$6,$H$10,,$H$8,$H$12)-RTD("cqg.rtd",,"StudyData",P$4,"BAR","","Close",$H$4,-1,$H$6,$H$10,,$H$8,$H$12))/RTD("cqg.rtd",,"StudyData",P$4,"BAR","","Close",$H$4,-1,$H$6,$H$10,,$H$8,$H$12),"") -> 0.0129960872 | Q5: =IFERROR((RTD("cqg.rtd",,"StudyData",Q$4,"BAR","","Close",$H$4,0,$H$6,$H$10,,$H$8,$H$12)-RTD("cqg.rtd",,"StudyData",Q$4,"BAR","","Close",$H$4,-1,$H$6,$H$10,,$H$8,$H$12))/RTD("cqg.rtd",,"StudyData",Q$4,"BAR","","Close",$H$4,-1,$H$6,$H$10,,$H$8,$H$12),"") -> -0.001864181092 | R5: =IFERROR((RTD("cqg.rtd",,"StudyData",R$4,"BAR","","Close",$H$4,0,$H$6,$H$10,,$H$8,$H$12)-RTD("cqg.rtd",,"StudyData",R$4,"BAR","","Close",$H$4,-1,$H$6,$H$10,,$H$8,$H$12))/RTD("cqg.rtd",,"StudyData",R$4,"BAR","","Close",$H$4,-1,$H$6,$H$10,,$H$8,$H$12),"") -> -0.01720606309 | S5: =IFERROR((RTD("cqg.rtd",,"StudyData",S$4,"BAR","","Close",$H$4,0,$H$6,$H$10,,$H$8,$H$12)-RTD("cqg.rtd",,"StudyData",S$4,"BAR","","Close",$H$4,-1,$H$6,$H$10,,$H$8,$H$12))/RTD("cqg.rtd",,"StudyData",S$4,"BAR","","Close",$H$4,-1,$H$6,$H$10,,$H$8,$H$12),"") -> -0.02598870056 | T5: =IFERROR((RTD("cqg.rtd",,"StudyData",T$4,"BAR","","Close",$H$4,0,$H$6,$H$10,,$H$8,$H$12)-RTD("cqg.rtd",,"StudyData",T$4,"BAR","","Close",$H$4,-1,$H$6,$H$10,,$H$8,$H$12))/RTD("cqg.rtd",,"StudyData",T$4,"BAR","","Close",$H$4,-1,$H$6,$H$10,,$H$8,$H$12),"") -> -0.0136857008 | U5: =IFERROR((RTD("cqg.rtd",,"StudyData",U$4,"BAR","","Close",$H$4,0,$H$6,$H$10,,$H$8,$H$12)-RTD("cqg.rtd",,"StudyData",U$4,"BAR","","Close",$H$4,-1,$H$6,$H$10,,$H$8,$H$12))/RTD("cqg.rtd",,"StudyData",U$4,"BAR","","Close",$H$4,-1,$H$6,$H$10,,$H$8,$H$12),"") ->  | V5: =IFERROR((RTD("cqg.rtd",,"StudyData",V$4,"BAR","","Close",$H$4,0,$H$6,$H$10,,$H$8,$H$12)-RTD("cqg.rtd",,"StudyData",V$4,"BAR","","Close",$H$4,-1,$H$6,$H$10,,$H$8,$H$12))/RTD("cqg.rtd",,"StudyData",V$4,"BAR","","Close",$H$4,-1,$H$6,$H$10,,$H$8,$H$12),"") -> -0.01116639027 | W5: =IFERROR((RTD("cqg.rtd",,"StudyData",W$4,"BAR","","Close",$H$4,0,$H$6,$H$10,,$H$8,$H$12)-RTD("cqg.rtd",,"StudyData",W$4,"BAR","","Close",$H$4,-1,$H$6,$H$10,,$H$8,$H$12))/RTD("cqg.rtd",,"StudyData",W$4,"BAR","","Close",$H$4,-1,$H$6,$H$10,,$H$8,$H$12),"") -> -0.01238003496 | X5: =IFERROR((RTD("cqg.rtd",,"StudyData",X$4,"BAR","","Close",$H$4,0,$H$6,$H$10,,$H$8,$H$12)-RTD("cqg.rtd",,"StudyData",X$4,"BAR","","Close",$H$4,-1,$H$6,$H$10,,$H$8,$H$12))/RTD("cqg.rtd",,"StudyData",X$4,"BAR","","Close",$H$4,-1,$H$6,$H$10,,$H$8,$H$12),"") -> 0.000488997555 | Y5: =IFERROR((RTD("cqg.rtd",,"StudyData",Y$4,"BAR","","Close",$H$4,0,$H$6,$H$10,,$H$8,$H$12)-RTD("cqg.rtd",,"StudyData",Y$4,"BAR","","Close",$H$4,-1,$H$6,$H$10,,$H$8,$H$12))/RTD("cqg.rtd",,"StudyData",Y$4,"BAR","","Close",$H$4,-1,$H$6,$H$10,,$H$8,$H$12),"") -> 0.01147193788 | Z5: =IFERROR((RTD("cqg.rtd",,"StudyData",Z$4,"BAR","","Close",$H$4,0,$H$6,$H$10,,$H$8,$H$12)-RTD("cqg.rtd",,"StudyData",Z$4,"BAR","","Close",$H$4,-1,$H$6,$H$10,,$H$8,$H$12))/RTD("cqg.rtd",,"StudyData",Z$4,"BAR","","Close",$H$4,-1,$H$6,$H$10,,$H$8,$H$12),"") -> -0.007763082231 | AA5: =IFERROR((RTD("cqg.rtd",,"StudyData",AA$4,"BAR","","Close",$H$4,0,$H$6,$H$10,,$H$8,$H$12)-RTD("cqg.rtd",,"StudyData",AA$4,"BAR","","Close",$H$4,-1,$H$6,$H$10,,$H$8,$H$12))/RTD("cqg.rtd",,"StudyData",AA$4,"BAR","","Close",$H$4,-1,$H$6,$H$10,,$H$8,$H$12),"") -> -0.01033295063 | AB5: =IFERROR((RTD("cqg.rtd",,"StudyData",AB$4,"BAR","","Close",$H$4,0,$H$6,$H$10,,$H$8,$H$12)-RTD("cqg.rtd",,"StudyData",AB$4,"BAR","","Close",$H$4,-1,$H$6,$H$10,,$H$8,$H$12))/RTD("cqg.rtd",,"StudyData",AB$4,"BAR","","Close",$H$4,-1,$H$6,$H$10,,$H$8,$H$12),"") -> -0.01277683135 | AC5: =IFERROR((RTD("cqg.rtd",,"StudyData",AC$4,"BAR","","Close",$H$4,0,$H$6,$H$10,,$H$8,$H$12)-RTD("cqg.rtd",,"StudyData",AC$4,"BAR","","Close",$H$4,-1,$H$6,$H$10,,$H$8,$H$12))/RTD("cqg.rtd",,"StudyData",AC$4,"BAR","","Close",$H$4,-1,$H$6,$H$10,,$H$8,$H$12),"") -> -0.006294964029
A6: =M4 -> DXE | B6: =IFERROR((RTD("cqg.rtd",,"StudyData",$A6,"BAR","","Close",$H$4,0,$H$6,$H$10,,$H$8,$H$12)-RTD("cqg.rtd",,"StudyData",$A6,"BAR","","Close",$H$4,-1,$H$6,$H$10,,$H$8,$H$12))/RTD("cqg.rtd",,"StudyData",$A6,"BAR","","Close",$H$4,-1,$H$6,$H$10,,$H$8,$H$12),"") -> 0.0005480384005 | C6: =IFERROR(RANK($B6,$B$2:B$22)+COUNTIF($B$2:B6,B6)-1,"") -> 5 | D6: DXE | E6: 5 | F6: DXE | G6: 0.0005480384005 | H6: All | I6: =IFERROR((RTD("cqg.rtd",,"StudyData",I$4,"BAR","","Close",$H$4,-1,$H$6,$H$10,,$H$8,$H$12)-RTD("cqg.rtd",,"StudyData",I$4,"BAR","","Close",$H$4,-2,$H$6,$H$10,,$H$8,$H$12))/RTD("cqg.rtd",,"StudyData",I$4,"BAR","","Close",$H$4,-2,$H$6,$H$10,,$H$8,$H$12),"") -> -0.008634049148 | J6: =IFERROR((RTD("cqg.rtd",,"StudyData",J$4,"BAR","","Close",$H$4,-1,$H$6,$H$10,,$H$8,$H$12)-RTD("cqg.rtd",,"StudyData",J$4,"BAR","","Close",$H$4,-2,$H$6,$H$10,,$H$8,$H$12))/RTD("cqg.rtd",,"StudyData",J$4,"BAR","","Close",$H$4,-2,$H$6,$H$10,,$H$8,$H$12),"") -> 0.1216947422 | K6: =IFERROR((RTD("cqg.rtd",,"StudyData",K$4,"BAR","","Close",$H$4,-1,$H$6,$H$10,,$H$8,$H$12)-RTD("cqg.rtd",,"StudyData",K$4,"BAR","","Close",$H$4,-2,$H$6,$H$10,,$H$8,$H$12))/RTD("cqg.rtd",,"StudyData",K$4,"BAR","","Close",$H$4,-2,$H$6,$H$10,,$H$8,$H$12),"") -> -0.01438269474 | L6: =IFERROR((RTD("cqg.rtd",,"StudyData",L$4,"BAR","","Close",$H$4,-1,$H$6,$H$10,,$H$8,$H$12)-RTD("cqg.rtd",,"StudyData",L$4,"BAR","","Close",$H$4,-2,$H$6,$H$10,,$H$8,$H$12))/RTD("cqg.rtd",,"StudyData",L$4,"BAR","","Close",$H$4,-2,$H$6,$H$10,,$H$8,$H$12),"") -> 0.005311614731 | M6: =IFERROR((RTD("cqg.rtd",,"StudyData",M$4,"BAR","","Close",$H$4,-1,$H$6,$H$10,,$H$8,$H$12)-RTD("cqg.rtd",,"StudyData",M$4,"BAR","","Close",$H$4,-2,$H$6,$H$10,,$H$8,$H$12))/RTD("cqg.rtd",,"StudyData",M$4,"BAR","","Close",$H$4,-2,$H$6,$H$10,,$H$8,$H$12),"") -> 0.01692114038 | N6: =IFERROR((RTD("cqg.rtd",,"StudyData",N$4,"BAR","","Close",$H$4,-1,$H$6,$H$10,,$H$8,$H$12)-RTD("cqg.rtd",,"StudyData",N$4,"BAR","","Close",$H$4,-2,$H$6,$H$10,,$H$8,$H$12))/RTD("cqg.rtd",,"StudyData",N$4,"BAR","","Close",$H$4,-2,$H$6,$H$10,,$H$8,$H$12),"") -> -0.0182679919 | O6: =IFERROR((RTD("cqg.rtd",,"StudyData",O$4,"BAR","","Close",$H$4,-1,$H$6,$H$10,,$H$8,$H$12)-RTD("cqg.rtd",,"StudyData",O$4,"BAR","","Close",$H$4,-2,$H$6,$H$10,,$H$8,$H$12))/RTD("cqg.rtd",,"StudyData",O$4,"BAR","","Close",$H$4,-2,$H$6,$H$10,,$H$8,$H$12),"") -> 0.01311433117 | P6: =IFERROR((RTD("cqg.rtd",,"StudyData",P$4,"BAR","","Close",$H$4,-1,$H$6,$H$10,,$H$8,$H$12)-RTD("cqg.rtd",,"StudyData",P$4,"BAR","","Close",$H$4,-2,$H$6,$H$10,,$H$8,$H$12))/RTD("cqg.rtd",,"StudyData",P$4,"BAR","","Close",$H$4,-2,$H$6,$H$10,,$H$8,$H$12),"") -> 0.003646563815 | Q6: =IFERROR((RTD("cqg.rtd",,"StudyData",Q$4,"BAR","","Close",$H$4,-1,$H$6,$H$10,,$H$8,$H$12)-RTD("cqg.rtd",,"StudyData",Q$4,"BAR","","Close",$H$4,-2,$H$6,$H$10,,$H$8,$H$12))/RTD("cqg.rtd",,"StudyData",Q$4,"BAR","","Close",$H$4,-2,$H$6,$H$10,,$H$8,$H$12),"") -> 0.01678851882 | R6: =IFERROR((RTD("cqg.rtd",,"StudyData",R$4,"BAR","","Close",$H$4,-1,$H$6,$H$10,,$H$8,$H$12)-RTD("cqg.rtd",,"StudyData",R$4,"BAR","","Close",$H$4,-2,$H$6,$H$10,,$H$8,$H$12))/RTD("cqg.rtd",,"StudyData",R$4,"BAR","","Close",$H$4,-2,$H$6,$H$10,,$H$8,$H$12),"") -> -0.03169852146 | S6: =IFERROR((RTD("cqg.rtd",,"StudyData",S$4,"BAR","","Close",$H$4,-1,$H$6,$H$10,,$H$8,$H$12)-RTD("cqg.rtd",,"StudyData",S$4,"BAR","","Close",$H$4,-2,$H$6,$H$10,,$H$8,$H$12))/RTD("cqg.rtd",,"StudyData",S$4,"BAR","","Close",$H$4,-2,$H$6,$H$10,,$H$8,$H$12),"") -> -0.008403361345 | T6: =IFERROR((RTD("cqg.rtd",,"StudyData",T$4,"BAR","","Close",$H$4,-1,$H$6,$H$10,,$H$8,$H$12)-RTD("cqg.rtd",,"StudyData",T$4,"BAR","","Close",$H$4,-2,$H$6,$H$10,,$H$8,$H$12))/RTD("cqg.rtd",,"StudyData",T$4,"BAR","","Close",$H$4,-2,$H$6,$H$10,,$H$8,$H$12),"") -> 0.05171729204 | U6: =IFERROR((RTD("cqg.rtd",,"StudyData",U$4,"BAR","","Close",$H$4,-1,$H$6,$H$10,,$H$8,$H$12)-RTD("cqg.rtd",,"StudyData",U$4,"BAR","","Close",$H$4,-2,$H$6,$H$10,,$H$8,$H$12))/RTD("cqg.rtd",,"StudyData",U$4,"BAR","","Close",$H$4,-2,$H$6,$H$10,,$H$8,$H$12),"") -> 0.06677436726 | V6: =IFERROR((RTD("cqg.rtd",,"StudyData",V$4,"BAR","","Close",$H$4,-1,$H$6,$H$10,,$H$8,$H$12)-RTD("cqg.rtd",,"StudyData",V$4,"BAR","","Close",$H$4,-2,$H$6,$H$10,,$H$8,$H$12))/RTD("cqg.rtd",,"StudyData",V$4,"BAR","","Close",$H$4,-2,$H$6,$H$10,,$H$8,$H$12),"") -> -0.00789733465 | W6: =IFERROR((RTD("cqg.rtd",,"StudyData",W$4,"BAR","","Close",$H$4,-1,$H$6,$H$10,,$H$8,$H$12)-RTD("cqg.rtd",,"StudyData",W$4,"BAR","","Close",$H$4,-2,$H$6,$H$10,,$H$8,$H$12))/RTD("cqg.rtd",,"StudyData",W$4,"BAR","","Close",$H$4,-2,$H$6,$H$10,,$H$8,$H$12),"") -> 0.005128021229 | X6: =IFERROR((RTD("cqg.rtd",,"StudyData",X$4,"BAR","","Close",$H$4,-1,$H$6,$H$10,,$H$8,$H$12)-RTD("cqg.rtd",,"StudyData",X$4,"BAR","","Close",$H$4,-2,$H$6,$H$10,,$H$8,$H$12))/RTD("cqg.rtd",,"StudyData",X$4,"BAR","","Close",$H$4,-2,$H$6,$H$10,,$H$8,$H$12),"") -> -0.07003183265 | Y6: =IFERROR((RTD("cqg.rtd",,"StudyData",Y$4,"BAR","","Close",$H$4,-1,$H$6,$H$10,,$H$8,$H$12)-RTD("cqg.rtd",,"StudyData",Y$4,"BAR","","Close",$H$4,-2,$H$6,$H$10,,$H$8,$H$12))/RTD("cqg.rtd",,"StudyData",Y$4,"BAR","","Close",$H$4,-2,$H$6,$H$10,,$H$8,$H$12),"") -> 0.03006944697 | Z6: =IFERROR((RTD("cqg.rtd",,"StudyData",Z$4,"BAR","","Close",$H$4,-1,$H$6,$H$10,,$H$8,$H$12)-RTD("cqg.rtd",,"StudyData",Z$4,"BAR","","Close",$H$4,-2,$H$6,$H$10,,$H$8,$H$12))/RTD("cqg.rtd",,"StudyData",Z$4,"BAR","","Close",$H$4,-2,$H$6,$H$10,,$H$8,$H$12),"") -> -0.008834425762 | AA6: =IFERROR((RTD("cqg.rtd",,"StudyData",AA$4,"BAR","","Close",$H$4,-1,$H$6,$H$10,,$H$8,$H$12)-RTD("cqg.rtd",,"StudyData",AA$4,"BAR","","Close",$H$4,-2,$H$6,$H$10,,$H$8,$H$12))/RTD("cqg.rtd",,"StudyData",AA$4,"BAR","","Close",$H$4,-2,$H$6,$H$10,,$H$8,$H$12),"") -> 0.002878526195 | AB6: =IFERROR((RTD("cqg.rtd",,"StudyData",AB$4,"BAR","","Close",$H$4,-1,$H$6,$H$10,,$H$8,$H$12)-RTD("cqg.rtd",,"StudyData",AB$4,"BAR","","Close",$H$4,-2,$H$6,$H$10,,$H$8,$H$12))/RTD("cqg.rtd",,"StudyData",AB$4,"BAR","","Close",$H$4,-2,$H$6,$H$10,,$H$8,$H$12),"") -> -0.009282700422 | AC6: =IFERROR((RTD("cqg.rtd",,"StudyData",AC$4,"BAR","","Close",$H$4,-1,$H$6,$H$10,,$H$8,$H$12)-RTD("cqg.rtd",,"StudyData",AC$4,"BAR","","Close",$H$4,-2,$H$6,$H$10,,$H$8,$H$12))/RTD("cqg.rtd",,"StudyData",AC$4,"BAR","","Close",$H$4,-2,$H$6,$H$10,,$H$8,$H$12),"") -> -0.01983252534
A7: =N4 -> EU6 | B7: =IFERROR((RTD("cqg.rtd",,"StudyData",$A7,"BAR","","Close",$H$4,0,$H$6,$H$10,,$H$8,$H$12)-RTD("cqg.rtd",,"StudyData",$A7,"BAR","","Close",$H$4,-1,$H$6,$H$10,,$H$8,$H$12))/RTD("cqg.rtd",,"StudyData",$A7,"BAR","","Close",$H$4,-1,$H$6,$H$10,,$H$8,$H$12),"") -> -0.0003280993672 | C7: =IFERROR(RANK($B7,$B$2:B$22)+COUNTIF($B$2:B7,B7)-1,"") -> 7 | D7: EU6 | E7: 6 | F7: SBE | G7: 0.000488997555 | H7: Continuation | I7: 20 | J7: =I7-0.25 -> 19.75 | K7: =J7-0.25 -> 19.5 | L7: 19.25 | M7: 19 | N7: 18.75 | O7: 18.5 | P7: 18.25 | Q7: 18 | R7: 17.75 | S7: 17.5 | T7: 17.25 | U7: 17 | V7: 16.75 | W7: 16.5 | X7: 16.25 | Y7: 16 | Z7: 15.75 | AA7: 15.5 | AB7: 15.25 | AC7: 15
A8: =O4 -> GCE | B8: =IFERROR((RTD("cqg.rtd",,"StudyData",$A8,"BAR","","Close",$H$4,0,$H$6,$H$10,,$H$8,$H$12)-RTD("cqg.rtd",,"StudyData",$A8,"BAR","","Close",$H$4,-1,$H$6,$H$10,,$H$8,$H$12))/RTD("cqg.rtd",,"StudyData",$A8,"BAR","","Close",$H$4,-1,$H$6,$H$10,,$H$8,$H$12),"") -> -0.002886002886 | C8: =IFERROR(RANK($B8,$B$2:B$22)+COUNTIF($B$2:B8,B8)-1,"") -> 9 | D8: GCE | E8: 7 | F8: EU6 | G8: -0.0003280993672 | H8: TRUE | I8: 20 | J8: =I8-0.25 -> 19.75 | K8: 19.5 | L8: 19.25 | M8: 19 | N8: 18.75 | O8: 18.5 | P8: 18.25 | Q8: 18 | R8: 17.75 | S8: 17.5 | T8: 17.25 | U8: 17 | V8: 16.75 | W8: 16.5 | X8: 16.25 | Y8: 16 | Z8: 15.75 | AA8: 15.5 | AB8: 15.25 | AC8: 15
A9: =P4 -> GLE | B9: =IFERROR((RTD("cqg.rtd",,"StudyData",$A9,"BAR","","Close",$H$4,0,$H$6,$H$10,,$H$8,$H$12)-RTD("cqg.rtd",,"StudyData",$A9,"BAR","","Close",$H$4,-1,$H$6,$H$10,,$H$8,$H$12))/RTD("cqg.rtd",,"StudyData",$A9,"BAR","","Close",$H$4,-1,$H$6,$H$10,,$H$8,$H$12),"") -> 0.0129960872 | C9: =IFERROR(RANK($B9,$B$2:B$22)+COUNTIF($B$2:B9,B9)-1,"") -> 2 | D9: GLE | E9: 8 | F9: HE | G9: -0.001864181092 | H9: CustomSessionName eg 700to800
A10: =Q4 -> HE | B10: =IFERROR((RTD("cqg.rtd",,"StudyData",$A10,"BAR","","Close",$H$4,0,$H$6,$H$10,,$H$8,$H$12)-RTD("cqg.rtd",,"StudyData",$A10,"BAR","","Close",$H$4,-1,$H$6,$H$10,,$H$8,$H$12))/RTD("cqg.rtd",,"StudyData",$A10,"BAR","","Close",$H$4,-1,$H$6,$H$10,,$H$8,$H$12),"") -> -0.001864181092 | C10: =IFERROR(RANK($B10,$B$2:B$22)+COUNTIF($B$2:B10,B10)-1,"") -> 8 | D10: HE | E10: 9 | F10: GCE | G10: -0.002886002886
A11: =R4 -> HOE | B11: =IFERROR((RTD("cqg.rtd",,"StudyData",$A11,"BAR","","Close",$H$4,0,$H$6,$H$10,,$H$8,$H$12)-RTD("cqg.rtd",,"StudyData",$A11,"BAR","","Close",$H$4,-1,$H$6,$H$10,,$H$8,$H$12))/RTD("cqg.rtd",,"StudyData",$A11,"BAR","","Close",$H$4,-1,$H$6,$H$10,,$H$8,$H$12),"") -> -0.01720606309 | C11: =IFERROR(RANK($B11,$B$2:B$22)+COUNTIF($B$2:B11,B11)-1,"") -> 19 | D11: HOE | E11: 10 | F11: ZWA | G11: -0.006294964029 | H11: Decimal=T, Tick=D
A12: =S4 -> NGE | B12: =IFERROR((RTD("cqg.rtd",,"StudyData",$A12,"BAR","","Close",$H$4,0,$H$6,$H$10,,$H$8,$H$12)-RTD("cqg.rtd",,"StudyData",$A12,"BAR","","Close",$H$4,-1,$H$6,$H$10,,$H$8,$H$12))/RTD("cqg.rtd",,"StudyData",$A12,"BAR","","Close",$H$4,-1,$H$6,$H$10,,$H$8,$H$12),"") -> -0.02598870056 | C12: =IFERROR(RANK($B12,$B$2:B$22)+COUNTIF($B$2:B12,B12)-1,"") -> 20 | D12: NGE | E12: 11 | F12: TYA | G12: -0.007763082231 | H12: T
A13: =T4 -> PAE | B13: =IFERROR((RTD("cqg.rtd",,"StudyData",$A13,"BAR","","Close",$H$4,0,$H$6,$H$10,,$H$8,$H$12)-RTD("cqg.rtd",,"StudyData",$A13,"BAR","","Close",$H$4,-1,$H$6,$H$10,,$H$8,$H$12))/RTD("cqg.rtd",,"StudyData",$A13,"BAR","","Close",$H$4,-1,$H$6,$H$10,,$H$8,$H$12),"") -> -0.0136857008 | C13: =IFERROR(RANK($B13,$B$2:B$22)+COUNTIF($B$2:B13,B13)-1,"") -> 17 | D13: PAE | E13: 12 | F13: ZCE | G13: -0.01033295063
A14: =U4 -> PLE | B14: =IFERROR((RTD("cqg.rtd",,"StudyData",$A14,"BAR","","Close",$H$4,0,$H$6,$H$10,,$H$8,$H$12)-RTD("cqg.rtd",,"StudyData",$A14,"BAR","","Close",$H$4,-1,$H$6,$H$10,,$H$8,$H$12))/RTD("cqg.rtd",,"StudyData",$A14,"BAR","","Close",$H$4,-1,$H$6,$H$10,,$H$8,$H$12),"") ->  | C14: =IFERROR(RANK($B14,$B$2:B$22)+COUNTIF($B$2:B14,B14)-1,"") ->  | D14: PLE | E14: 13 | F14: CLE | G14: -0.01050665421
A15: =V4 -> QO | B15: =IFERROR((RTD("cqg.rtd",,"StudyData",$A15,"BAR","","Close",$H$4,0,$H$6,$H$10,,$H$8,$H$12)-RTD("cqg.rtd",,"StudyData",$A15,"BAR","","Close",$H$4,-1,$H$6,$H$10,,$H$8,$H$12))/RTD("cqg.rtd",,"StudyData",$A15,"BAR","","Close",$H$4,-1,$H$6,$H$10,,$H$8,$H$12),"") -> -0.01116639027 | C15: =IFERROR(RANK($B15,$B$2:B$22)+COUNTIF($B$2:B15,B15)-1,"") -> 14 | D15: QO | E15: 14 | F15: QO | G15: -0.01116639027
A16: =W4 -> RBE | B16: =IFERROR((RTD("cqg.rtd",,"StudyData",$A16,"BAR","","Close",$H$4,0,$H$6,$H$10,,$H$8,$H$12)-RTD("cqg.rtd",,"StudyData",$A16,"BAR","","Close",$H$4,-1,$H$6,$H$10,,$H$8,$H$12))/RTD("cqg.rtd",,"StudyData",$A16,"BAR","","Close",$H$4,-1,$H$6,$H$10,,$H$8,$H$12),"") -> -0.01238003496 | C16: =IFERROR(RANK($B16,$B$2:B$22)+COUNTIF($B$2:B16,B16)-1,"") -> 15 | D16: RBE | E16: 15 | F16: RBE | G16: -0.01238003496
A17: =X4 -> SBE | B17: =IFERROR((RTD("cqg.rtd",,"StudyData",$A17,"BAR","","Close",$H$4,0,$H$6,$H$10,,$H$8,$H$12)-RTD("cqg.rtd",,"StudyData",$A17,"BAR","","Close",$H$4,-1,$H$6,$H$10,,$H$8,$H$12))/RTD("cqg.rtd",,"StudyData",$A17,"BAR","","Close",$H$4,-1,$H$6,$H$10,,$H$8,$H$12),"") -> 0.000488997555 | C17: =IFERROR(RANK($B17,$B$2:B$22)+COUNTIF($B$2:B17,B17)-1,"") -> 6 | D17: SBE | E17: 16 | F17: ZSE | G17: -0.01277683135
A18: =Y4 -> SIE | B18: =IFERROR((RTD("cqg.rtd",,"StudyData",$A18,"BAR","","Close",$H$4,0,$H$6,$H$10,,$H$8,$H$12)-RTD("cqg.rtd",,"StudyData",$A18,"BAR","","Close",$H$4,-1,$H$6,$H$10,,$H$8,$H$12))/RTD("cqg.rtd",,"StudyData",$A18,"BAR","","Close",$H$4,-1,$H$6,$H$10,,$H$8,$H$12),"") -> 0.01147193788 | C18: =IFERROR(RANK($B18,$B$2:B$22)+COUNTIF($B$2:B18,B18)-1,"") -> 3 | D18: SIE | E18: 17 | F18: PAE | G18: -0.0136857008
A19: =Z4 -> TYA | B19: =IFERROR((RTD("cqg.rtd",,"StudyData",$A19,"BAR","","Close",$H$4,0,$H$6,$H$10,,$H$8,$H$12)-RTD("cqg.rtd",,"StudyData",$A19,"BAR","","Close",$H$4,-1,$H$6,$H$10,,$H$8,$H$12))/RTD("cqg.rtd",,"StudyData",$A19,"BAR","","Close",$H$4,-1,$H$6,$H$10,,$H$8,$H$12),"") -> -0.007763082231 | C19: =IFERROR(RANK($B19,$B$2:B$22)+COUNTIF($B$2:B19,B19)-1,"") -> 11 | D19: TYA | E19: 18 | F19: BTC | G19: -0.0152597886
A20: =AA4 -> ZCE | B20: =IFERROR((RTD("cqg.rtd",,"StudyData",$A20,"BAR","","Close",$H$4,0,$H$6,$H$10,,$H$8,$H$12)-RTD("cqg.rtd",,"StudyData",$A20,"BAR","","Close",$H$4,-1,$H$6,$H$10,,$H$8,$H$12))/RTD("cqg.rtd",,"StudyData",$A20,"BAR","","Close",$H$4,-1,$H$6,$H$10,,$H$8,$H$12),"") -> -0.01033295063 | C20: =IFERROR(RANK($B20,$B$2:B$22)+COUNTIF($B$2:B20,B20)-1,"") -> 12 | D20: ZCE | E20: 19 | F20: HOE | G20: -0.01720606309
A21: =AB4 -> ZSE | B21: =IFERROR((RTD("cqg.rtd",,"StudyData",$A21,"BAR","","Close",$H$4,0,$H$6,$H$10,,$H$8,$H$12)-RTD("cqg.rtd",,"StudyData",$A21,"BAR","","Close",$H$4,-1,$H$6,$H$10,,$H$8,$H$12))/RTD("cqg.rtd",,"StudyData",$A21,"BAR","","Close",$H$4,-1,$H$6,$H$10,,$H$8,$H$12),"") -> -0.01277683135 | C21: =IFERROR(RANK($B21,$B$2:B$22)+COUNTIF($B$2:B21,B21)-1,"") -> 16 | D21: ZSE | E21: 20 | F21: NGE | G21: -0.02598870056
A22: =AC4 -> ZWA | B22: =IFERROR((RTD("cqg.rtd",,"StudyData",$A22,"BAR","","Close",$H$4,0,$H$6,$H$10,,$H$8,$H$12)-RTD("cqg.rtd",,"StudyData",$A22,"BAR","","Close",$H$4,-1,$H$6,$H$10,,$H$8,$H$12))/RTD("cqg.rtd",,"StudyData",$A22,"BAR","","Close",$H$4,-1,$H$6,$H$10,,$H$8,$H$12),"") -> -0.006294964029 | C22: =IFERROR(RANK($B22,$B$2:B$22)+COUNTIF($B$2:B22,B22)-1,"") -> 10 | D22: ZWA | E22: 21 | G22: =IFERROR(VLOOKUP(F22,$A$2:$B$22,2,FALSE),"") -> 
